[Event "48th Indian U15-ch Girls 2023"]
[Site "Jalgaon"]
[Date "2024.01.04"]
[Round "11.8"]
[White "Asmita Avijit Ray"]
[Black "Drishtee Ghosh"]
[Result "1/2-1/2"]
[ECO "E05"]
[WhiteElo "1470"]
[BlackElo "1605"]
[Annotator "NA RC"]
[PlyCount "124"]
[EventDate "2023.12.30"]
[EventType "swiss"]
[EventCountry "IND"]
[SourceTitle "playchess.com"]
[Source "ChessBase"]
[SourceQuality "1"]
[TimeControl "5400+30"]

1. d4 {[%emt 0:00:06]} Nf6 {[%emt 0:00:02]} 2. c4 {[%emt 0:00:07]} e6 {[%emt 0:00:04]} 3. g3 {[%emt 0:00:05]} d5 {[%emt 0:00:05]} 4. Bg2 {[%emt 0:00:05]} Be7 {[%emt 0:00:04]} 5. Nf3 {[%emt 0:00:06]} O-O {[%emt 0:00:06]} 6. O-O {[%emt 0:00:06]} dxc4 {[%emt 0:00:05]} 7. Qc2 {[%emt 0:00:07]} a6 {[%emt 0:00:01]} 8. a4 {[%emt 0:00:06]} Bd7 {[%emt 0:00:23]} 9. Rd1 {[%emt 0:00:07]} Bc6 {[%emt 0:01:56]} 10. Nc3 {[%emt 0:00:07]} Bb4 {[%emt 0:12:34]} 11. Bg5 {[%emt 0:13:38]} Bxc3 {[%emt 0:03:52]} 12. bxc3 {[%emt 0:03:21]} Nbd7 {[%emt 0:06:33]} 13. Ne5 {[%emt 0:30:21]} Bxg2 {[%emt 0:02:27]} 14. Kxg2 {[%emt 0:00:09]} h6 {[%emt 0:05:27]} 15. Bc1 {[%emt 0:09:43]} b5 {[%emt 0:22:30]} 16. Ba3 {[%emt 0:00:00]} c5 {[%emt 0:02:19]} 17. dxc5 {[%emt 0:11:38]} Qc7 {[%emt 0:01:33]} 18. Nxd7 {[%emt 0:00:15]} Nxd7 {[%emt 0:00:06]} 19. Qe4 {[%emt 0:00:12]} Nxc5 {[%emt 0:04:38]} 20. Bxc5 {[%emt 0:00:08]} Qxc5 {[%emt 0:00:07]} 21. axb5 {[%emt 0:00:04]} Qxb5 {[%emt 0:00:40]} 22. Rdb1 {[%emt 0:00:38]} Qc5 {[%emt 0:00:41]} 23. Rb4 {[%emt 0:01:52]} Rfc8 {[%emt 0:03:27]} 24. Raa4 {[%emt 0:01:10]} Qd5 {[%emt 0:01:31]} 25. Qxd5 {[%emt 0:15:23]} exd5 {[%emt 0:00:01]} 26. Ra5 {[%emt 0:00:14]} Rd8 {[%emt 0:04:26]} 27. Rb6 {[%emt 0:02:27]} Kf8 {[%emt 0:04:32]} 28. e3 {[%emt 0:00:57]} Ke7 {[%emt 0:01:40]} 29. Raxa6 {[%emt 0:00:14]} Rxa6 {[%emt 0:01:23]} 30. Rxa6 {[%emt 0:00:06]} Rb8 {[%emt 0:00:06]} 31. e4 {[%emt 0:02:24]} Rb3 {[%emt 0:02:24]} 32. exd5 {[%emt 0:01:25]} Rxc3 {[%emt 0:00:02]} 33. Rc6 {[%emt 0:00:10]} Kd7 {[%emt 0:01:19]} 34. h3 {[%emt 0:02:08]} Rc2 {[%emt 0:03:14]} 35. Kf3 {[%emt 0:01:22]} Rc3+ {[%emt 0:01:11]} 36. Ke4 {[%emt 0:02:54]} Rc2 {[%emt 0:00:46]} 37. Kd4 {[%emt 0:03:09]} Rd2+ {[%emt 0:02:11]} 38. Ke3 {[%emt 0:00:33]} Rc2 {[%emt 0:00:55]} 39. h4 {[%emt 0:01:03]} c3 {[%emt 0:00:50]} 40. Kd3 {[%emt 0:01:04]} Rxf2 {[%emt 0:01:23]} 41. Rxc3 {[%emt 0:00:07]} Rf3+ {[%emt 0:00:08]} 42. Kd4 {[%emt 0:00:05]} Rxc3 {[%emt 0:00:14]} 43. Kxc3 {[%emt 0:00:01]} Kd6 {[%emt 0:00:01]} 44. Kc4 {[%emt 0:00:24]} h5 {[%emt 0:00:32]} 45. Kd4 {[%emt 0:00:04]} f6 {[%emt 0:00:17]} 46. Ke4 {[%emt 0:01:06]} g6 {[%emt 0:00:01]} 47. Kd4 {[%emt 0:00:08]} Kd7 {[%emt 0:00:52]} 48. Kc5 {[%emt 0:00:49]} g5 {[%emt 0:00:09]} 49. d6 {[%emt 0:00:32]} gxh4 {[%emt 0:01:31]} 50. gxh4 {[%emt 0:00:05]} f5 {[%emt 0:00:02]} 51. Kd5 {[%emt 0:00:09]} f4 {[%emt 0:00:20]} 52. Ke4 {[%emt 0:00:13]} f3 {[%emt 0:00:21]} 53. Kxf3 {[%emt 0:00:05]} Kxd6 {[%emt 0:00:04]} 54. Kf4 {[%emt 0:00:11]} Ke6 {[%emt 0:00:03]} 55. Kg5 {[%emt 0:00:06]} Ke5 {[%emt 0:00:04]} 56. Kxh5 {[%emt 0:00:04]} Kf5 {[%emt 0:00:03]} 57. Kh6 {[%emt 0:00:10]} Kf6 {[%emt 0:00:03]} 58. h5 {[%emt 0:00:03]} Kf7 {[%emt 0:00:04]} 59. Kh7 {[%emt 0:00:03]} Kf8 {[%emt 0:00:05]} 60. h6 {[%emt 0:00:05]} Kf7 {[%emt 0:00:03]} 61. Kh8 {[%emt 0:00:03]} Kf8 {[%emt 0:00:04]} 62. h7 {[%emt 0:00:02]} Kf7 {[%emt 0:00:05]} 1/2-1/2

[Event "48th Indian U15-ch Girls 2023"]
[Site "Jalgaon"]
[Date "2024.01.04"]
[Round "11.9"]
[White "Chaarvi Choudhury"]
[Black "Arshiya Das"]
[Result "1/2-1/2"]
[ECO "B06"]
[WhiteElo "1468"]
[BlackElo "1729"]
[Annotator "NA RC"]
[PlyCount "91"]
[EventDate "2023.12.30"]
[EventType "swiss"]
[EventCountry "IND"]
[SourceTitle "playchess.com"]
[Source "ChessBase"]
[SourceQuality "1"]
[TimeControl "5400+30"]

1. e4 {[%emt 0:00:03]} g6 {[%emt 0:00:06]} 2. d4 {[%emt 0:00:06]} Bg7 {[%emt 0:00:03]} 3. Nf3 {[%emt 0:00:06]} d6 {[%emt 0:00:02]} 4. Nc3 {[%emt 0:01:03]} a6 {[%emt 0:00:08]} 5. a4 {[%emt 0:01:19]} b6 {[%emt 0:00:32]} 6. Be3 {[%emt 0:03:47]} Bb7 {[%emt 0:00:11]} 7. Qd2 {[%emt 0:05:37]} h6 {[%emt 0:00:10]} 8. h3 {[%emt 0:06:12]} e6 {[%emt 0:00:38]} 9. Bd3 {[%emt 0:06:39]} Nd7 {[%emt 0:00:17]} 10. O-O {[%emt 0:04:11]} Ne7 {[%emt 0:00:26]} 11. Nh2 {[%emt 0:09:35]} Nf8 {[%emt 0:21:44]} 12. Ng4 {[%emt 0:11:14]} Ng8 {[%emt 0:01:51]} 13. f4 {[%emt 0:02:18]} f5 {[%emt 0:02:44]} 14. Nh2 {[%emt 0:04:17]} Nf6 {[%emt 0:08:01]} 15. exf5 {[%emt 0:06:16]} gxf5 {[%emt 0:01:00]} 16. Qe2 {[%emt 0:01:55]} Kd7 {[%emt 0:01:55]} 17. d5 {[%emt 0:03:23]} Nxd5 {[%emt 0:03:22]} 18. Nxd5 {[%emt 0:00:02]} Bxd5 {[%emt 0:00:12]} 19. Bxa6 {[%emt 0:00:17]} Rg8 {[%emt 0:01:15]} 20. Bb5+ {[%emt 0:03:31]} Kc8 {[%emt 0:04:54]} 21. Nf3 {[%emt 0:02:24]} Bf6 {[%emt 0:04:06]} 22. c3 {[%emt 0:03:26]} Ng6 {[%emt 0:04:59]} 23. Bc4 {[%emt 0:04:00]} Bxc4 {[%emt 0:02:37]} 24. Qxc4 {[%emt 0:00:03]} Kd7 {[%emt 0:00:42]} 25. Qb5+ {[%emt 0:02:22]} Ke7 {[%emt 0:00:26]} 26. Nd4 {[%emt 0:03:00]} Bxd4 {[%emt 0:02:48]} 27. Bxd4 {[%emt 0:00:02]} Nh4 {[%emt 0:08:57]} 28. Rf2 {[%emt 0:00:01]} c5 {[%emt 0:00:34]} 29. Be3 {[%emt 0:00:07]} Qc7 {[%emt 0:00:10]} 30. Qe2 {[%emt 0:03:50]} Qc6 {[%emt 0:01:34]} 31. Kh2 {[%emt 0:00:48]} Qe8 {[%emt 0:02:37]} 32. g3 {[%emt 0:00:44]} Ng6 {[%emt 0:01:21]} 33. Qf3 {[%emt 0:01:39]} Ra7 {[%emt 0:01:22]} 34. b4 {[%emt 0:01:14]} Nf8 {[%emt 0:01:28]} 35. a5 {[%emt 0:00:57]} Nd7 {[%emt 0:02:24]} 36. Rfa2 {[%emt 0:01:44]} Qa8 {[%emt 0:01:33]} 37. Qxa8 {[%emt 0:03:34]} Rgxa8 {[%emt 0:00:03]} 38. a6 {[%emt 0:00:01]} b5 {[%emt 0:02:37]} 39. Ra5 {[%emt 0:01:01]} Rb8 {[%emt 0:00:42]} 40. Rb1 {[%emt 0:01:07]} Rb6 {[%emt 0:01:10]} 41. bxc5 {[%emt 0:00:27]} dxc5 {[%emt 0:00:45]} 42. Rbxb5 {[%emt 0:02:09]} Raxa6 {[%emt 0:00:13]} 43. Rxa6 {[%emt 0:01:34]} Rxb5 {[%emt 0:00:13]} 44. Rc6 {[%emt 0:00:52]} Kf7 {[%emt 0:01:49]} 45. Rc7 {[%emt 0:01:10]} Ke7 {[%emt 0:00:15]} 46. Rc6 {[%emt 0:00:05]} 1/2-1/2

[Event "48th Indian U15-ch Girls 2023"]
[Site "Jalgaon"]
[Date "2024.01.04"]
[Round "11.10"]
[White "Kirthika B"]
[Black "Prakash Vaishnavi"]
[Result "1-0"]
[ECO "C68"]
[WhiteElo "1605"]
[BlackElo "1421"]
[Annotator "NA RC"]
[PlyCount "65"]
[EventDate "2023.12.30"]
[EventType "swiss"]
[EventCountry "IND"]
[SourceTitle "playchess.com"]
[Source "ChessBase"]
[SourceQuality "1"]
[TimeControl "5400+30"]

1. e4 {[%emt 0:00:30]} e5 {[%emt 0:00:30]} 2. Nf3 {[%emt 0:00:30]} Nc6 {[%emt 0:00:30]} 3. Bb5 {[%emt 0:00:30]} a6 {[%emt 0:00:30]} 4. Bxc6 {[%emt 0:00:30]} dxc6 {[%emt 0:00:30]} 5. O-O {[%emt 0:00:30]} Bg4 {[%emt 0:00:30]} 6. h3 {[%emt 0:00:30]} Bxf3 {[%emt 0:00:30]} 7. Qxf3 {[%emt 0:00:30]} Qf6 {[%emt 0:00:30]} 8. Qb3 {[%emt 0:00:30]} O-O-O {[%emt 0:00:30]} 9. Qe3 {[%emt 0:00:30]} Kb8 {[%emt 0:00:30]} 10. d3 {[%emt 0:00:30]} h6 {[%emt 0:00:30]} 11. Nc3 {[%emt 0:00:30]} g5 {[%emt 0:00:30]} 12. Bd2 {[%emt 0:00:30]} Ne7 {[%emt 0:00:30]} 13. Rfb1 {[%emt 0:00:30]} Nc8 {[%emt 0:00:30]} 14. b4 {[%emt 0:00:30]} Nd6 {[%emt 0:00:30]} 15. a4 {[%emt 0:00:30]} b6 {[%emt 0:00:30]} 16. b5 {[%emt 0:00:30]} cxb5 {[%emt 0:00:30]} 17. Nd5 {[%emt 0:00:30]} Qe6 {[%emt 0:00:30]} 18. axb5 {[%emt 0:00:30]} a5 {[%emt 0:00:30]} 19. Bxa5 {[%emt 0:00:30]} Nb7 {[%emt 0:00:30]} 20. Bxb6 {[%emt 0:00:30]} cxb6 {[%emt 0:00:30]} 21. Ra8+ {[%emt 0:00:30]} Kxa8 {[%emt 0:00:30]} 22. Nc7+ {[%emt 0:00:30]} Kb8 {[%emt 0:00:30]} 23. Nxe6 {[%emt 0:00:30]} fxe6 {[%emt 0:00:30]} 24. Qxb6 {[%emt 0:00:30]} Bc5 {[%emt 0:00:30]} 25. Qa6 {[%emt 0:00:30]} Rhf8 {[%emt 0:00:30]} 26. b6 {[%emt 0:00:30]} Bxf2+ {[%emt 0:00:30]} 27. Kh2 {[%emt 0:00:30]} Bxb6 {[%emt 0:00:30]} 28. Qxb6 {[%emt 0:00:30]} Rf7 {[%emt 0:00:30]} 29. Qxd8+ {[%emt 0:00:30]} Ka7 {[%emt 0:00:30]} 30. Ra1+ {[%emt 0:00:30]} Na5 {[%emt 0:00:30]} 31. Rxa5+ {[%emt 0:00:30]} Kb7 {[%emt 0:00:30]} 32. Rb5+ {[%emt 0:00:30]} Kc6 {[%emt 0:00:30]} 33. Rb6+ {[%emt 0:00:30]} 1-0